bitfinex-derivatives/quotes_BNBF0:USTF0_20250715
["timestamp","ask_amount","ask_price","bid_price","bid_amount"]
[1752550081620,0.97605331,677.87,677.07,0.99222049]
[1752550081915,0.97605331,677.87,677.06,0.99222049]
[1752550082119,0.97605331,677.91,677.03,0.99222049]
[1752550082319,0.97605331,677.9,677.04,0.99222049]
[1752550082518,0.97605331,677.89,677.05,0.99222049]
[1752550083019,0.97605331,677.89,677.06,0.99222049]
[1752550083220,0.97605331,677.87,677.07,0.99222049]
[1752550083522,0.97605331,677.86,677.07,0.99222049]
[1752550083821,0.97605331,677.85,677.07,0.99222049]
[1752550084319,0.97605331,677.86,677.07,0.99222049]
[1752550084919,0.97605331,677.85,677.07,0.99222049]
[1752550086318,0.97605331,677.84,677.07,0.99222049]
[1752550086620,0.97605331,677.85,677.08,0.99222049]
[1752550086823,0.97605331,677.85,677.07,0.99222049]
[1752550088024,0.97605331,677.83,677.08,0.99222049]
[1752550090220,0.97605331,677.84,677.07,0.99222049]
[1752550090622,0.97605331,677.84,677.08,0.99222049]
[1752550091226,0.97605331,677.88,677.12,0.99222049]
[1752550092523,0.97605331,678.08,677.33,0.99222049]
[1752550092824,0.97605331,678.09,677.34,0.99222049]
[1752550093023,0.97605331,678.14,677.39,0.99222049]
[1752550093223,0.97605331,678.21,677.45,0.99222049]
[1752550093424,0.97605331,678.23,677.43,0.99222049]
[1752550093623,0.25672426,678.32,676.6,0.25672426]
[1752550093624,0.97605331,678.2,677.4,0.99222049]
[1752550093926,0.97605331,678.19,677.39,0.99222049]
[1752550094328,0.97605331,678.2,677.39,0.99222049]
[1752550094730,0.97605331,678.19,677.38,0.99222049]
[1752550094928,0.97605331,678.18,677.37,0.99222049]
[1752550095224,0.97605331,678.19,677.38,0.99222049]
[1752550095424,0.97605331,678.19,677.37,0.99222049]
[1752550095624,0.97605331,678.18,677.36,0.99222049]
[1752550096226,0.97605331,678.18,677.37,0.99222049]
[1752550096430,0.97605331,678.18,677.36,0.99222049]
[1752550096630,0.97605331,678.19,677.36,0.99222049]
[1752550096829,0.97605331,678.21,677.39,0.99222049]
[1752550098231,0.97605331,678.2,677.4,0.99222049]
[1752550098734,0.97605331,678.21,677.39,0.99222049]
[1752550100036,0.97605331,678.2,677.39,0.99222049]
[1752550100234,0.97605331,678.19,677.38,0.99222049]
[1752550100438,0.97605331,678.19,677.37,0.99222049]
[1752550100834,0.97605331,678.17,677.35,0.99222049]
[1752550101239,0.97605331,678.13,677.31,0.99222049]
[1752550101541,0.97605331,678.14,677.31,0.99222049]
[1752550101838,0.97605331,678.14,677.3,0.99222049]
[1752550102538,0.97605331,678.15,677.3,0.99222049]
[1752550103240,0.97605331,678.13,677.31,0.99222049]
[1752550104142,0.97605331,678.11,677.29,0.99222049]
[1752550104442,0.97605331,678.11,677.28,0.99222049]
[1752550104639,0.97605331,678.11,677.29,0.99222049]
[1752550105242,0.97605331,678.11,677.28,0.99222049]
[1752550106444,0.97605331,678.1,677.29,0.99222049]
[1752550107954,0.97605331,678.09,677.28,0.99222049]
[1752550108153,0.97605331,678.09,677.27,0.99222049]
[1752550108451,0.97605331,678.07,677.26,0.99222049]
[1752550108754,0.97605331,678.08,677.26,0.99222049]
[1752550108948,0.97605331,678.07,677.26,0.99222049]
[1752550111050,0.97605331,678.08,677.25,0.99222049]
[1752550111555,0.97605331,678.07,677.26,0.99222049]
[1752550114160,0.97605331,678.07,677.25,0.99222049]
[1752550114362,0.97605331,678.07,677.26,0.99222049]
[1752550115458,0.97605331,678.08,677.26,0.99222049]
[1752550115758,0.97605331,678.09,677.27,0.99222049]
[1752550116262,0.97274039,678.09,677.27,0.98982648]
[1752550116657,0.97274039,678.1,677.26,0.98982648]
[1752550117662,0.25672426,678.32,676.6,0.25672426]
[1752550117663,0.97274039,678.14,677.23,0.98982648]
[1752550118258,0.97274039,678.18,677.2,0.98982648]
[1752550118958,0.97274039,678.19,677.2,0.98982648]
[1752550119264,0.97274039,678.2,677.2,0.98982648]
[1752550119463,0.97274039,678.27,677.15,0.98982648]
[1752550119763,0.97274039,678.26,677.15,0.98982648]
[1752550120663,0.97274039,678.26,677.16,0.98982648]
[1752550122065,0.97274039,678.23,677.18,0.98982648]
[1752550122564,0.97274039,678.22,677.18,0.98982648]
[1752550123061,0.97274039,678.21,677.19,0.98982648]
[1752550123965,0.97274039,678.23,677.21,0.98982648]
[1752550124368,0.97274039,678.2,677.22,0.98982648]
[1752550124867,0.97274039,678.18,677.24,0.98982648]
[1752550125168,0.97274039,678.16,677.24,0.98982648]
[1752550126070,1.301457,678.32,677.08,1.3224451]
[1752550126266,0.97297982,678.13,677.26,0.99007476]
[1752550127464,0.97297982,678.11,677.28,0.99007476]
[1752550127664,0.97297982,678.17,677.23,0.99007476]
[1752550128373,0.97297982,678.17,677.24,0.99007476]
[1752550129166,0.97297982,678.18,677.23,0.99007476]
[1752550130168,0.97297982,678.18,677.24,0.99007476]
[1752550130367,0.97297982,678.17,677.24,0.99007476]
[1752550131768,0.97297982,678.31,677.14,0.99007476]
[1752550132273,0.97297982,678.31,677.16,0.99007476]
[1752550132468,0.97297982,678.31,677.15,0.99007476]
[1752550133175,0.97297982,678.3,677.15,0.99007476]
[1752550134370,0.97297982,678.29,677.15,0.99007476]
[1752550135175,0.97297982,678.29,677.16,0.99007476]
[1752550135671,0.97297982,678.3,677.17,0.99007476]
[1752550136074,0.97297982,678.28,677.18,0.99007476]
[1752550136274,0.97297982,678.23,677.22,0.99007476]
[1752550136674,0.97297982,678.23,677.23,0.99007476]
[1752550136874,0.25665515,678.42,676.93,0.25667787]
[1752550136875,0.97297982,678.24,677.24,0.99007476]
[1752550138275,0.97297982,678.23,677.24,0.99007476]
[1752550139979,0.25665515,678.42,677.03,1.3224451]
[1752550140777,0.25665515,678.42,676.93,0.25667787]
[1752550144684,0.25665515,678.42,677.21,1.3224286]
[1752550144979,1.2986918,678.16,677.21,1.3224286]
[1752550145185,0.25665515,678.42,676.93,0.25667787]
[1752550155098,0.97650897,677.99,677.38,0.99438476]
[1752550155397,0.97650897,677.9,677.29,0.99438476]
[1752550155692,0.97650897,677.98,677.24,0.99438476]
[1752550156494,0.97650897,677.98,677.23,0.99438476]
[1752550157394,0.97650897,678.04,677.29,0.99438476]
[1752550157696,0.97650897,678.04,677.09,1.3258463]
[1752550157697,0.97650897,678.07,677.32,0.99438476]
[1752550157896,0.97650897,678.05,677.3,0.99438476]
[1752550158296,0.97650897,678.04,677.29,0.99438476]
[1752550158495,0.97650897,678.01,677.31,0.99438476]
[1752550159494,0.97650897,678.13,677.43,0.99438476]
[1752550160499,0.97650897,678.11,677.41,0.99438476]
[1752550161296,0.97650897,678.11,677.22,1.3258463]
[1752550161297,0.97650897,678.1,677.4,0.99438476]
[1752550161999,0.97650897,678.07,677.37,0.99438476]
[1752550162700,0.97650897,678.06,677.37,0.99438476]
[1752550163600,0.97650897,678.06,677.36,0.99438476]
[1752550163905,0.97650897,678.07,677.37,0.99438476]
[1752550164504,0.97650897,678.07,677.36,0.99438476]
[1752550165601,0.97650897,678.01,677.4,0.99438476]
[1752550166006,0.97650897,678.05,677.38,0.99438476]
[1752550166305,0.97650897,678.04,677.38,0.99438476]
[1752550166805,0.97650897,678.01,677.35,0.99438476]
[1752550167005,0.97650897,678.01,677.34,0.99438476]
[1752550167702,0.97650897,678.07,677.31,0.99438476]
[1752550167906,0.97650897,678.06,677.3,0.99438476]
[1752550169007,0.97650897,678.0,677.25,0.99438476]
[1752550169303,0.97650897,677.99,677.23,0.99438476]
[1752550170402,0.97650897,677.99,677.22,0.99438476]
[1752550171306,0.97650897,678.0,677.22,0.99438476]
[1752550172008,0.97650897,678.01,677.24,0.99438476]
[1752550172608,0.97650897,678.01,677.23,0.99438476]
[1752550172809,0.25665515,678.42,677.33,0.99438476]
[1752550172810,0.97650897,678.11,677.33,0.99438476]
[1752550173807,1.3020119,678.31,676.93,2.24544737]
[1752550173808,0.97650897,678.09,677.32,0.99438476]
[1752550175812,0.97650897,678.08,677.33,0.99438476]
[1752550176310,0.97650897,678.08,677.32,0.99438476]
[1752550176507,0.97650897,678.09,677.32,0.99438476]
[1752550177205,0.97650897,678.09,676.93,0.25667787]
[1752550177206,0.97650897,678.11,677.3,0.99438476]
[1752550177407,0.97650897,678.06,677.34,0.99438476]
[1752550177609,0.97650897,678.06,677.33,0.99438476]
[1752550177808,0.97650897,678.05,677.34,0.99438476]
[1752550185214,0.97650897,678.01,677.37,0.99438476]
[1752550185418,0.97650897,678.0,677.37,0.99438476]
[1752550186515,0.97650897,678.01,677.37,0.99438476]
[1752550187420,0.97650897,678.0,677.37,0.99438476]
[1752550188020,0.97650897,678.01,677.37,0.99438476]
[1752550188922,0.97650897,677.99,677.38,0.99438476]
[1752550189518,0.97650897,677.98,677.37,0.99438476]
[1752550190021,0.25665515,678.42,676.93,0.25667787]
[1752550190022,0.97650897,677.95,677.34,0.99438476]
[1752550192620,0.97650897,677.95,677.33,0.99438476]
[1752550193425,0.97650897,677.97,677.32,0.99438476]
[1752550193822,0.97650897,677.96,677.32,0.99438476]
[1752550194024,0.97650897,677.95,677.31,0.99438476]
[1752550195225,0.97650897,677.94,677.31,0.99438476]
[1752550197828,0.97650897,677.94,677.32,0.99438476]
[1752550199227,0.97650897,677.93,677.32,0.99438476]
[1752550199531,0.97650897,677.94,677.32,0.99438476]
[1752550200530,0.97650897,677.94,677.31,0.99438476]
[1752550201231,0.97650897,677.95,677.3,0.99438476]
[1752550201433,0.97650897,677.96,677.29,0.99438476]
[1752550201833,0.97650897,677.96,677.28,0.99438476]
[1752550202636,0.97650897,677.97,677.28,0.99438476]
[1752550202834,0.97650897,677.94,677.3,0.99438476]
[1752550203333,0.25665515,678.42,677.3,0.99438476]
[1752550203334,0.97650897,677.91,677.3,0.99438476]
[1752550203733,0.97650897,677.91,677.29,0.99438476]
[1752550204336,0.25665515,678.42,677.27,0.99438476]
[1752550204337,0.97650897,677.94,677.27,0.99438476]
[1752550204541,0.97650897,677.93,677.27,0.99438476]
[1752550204841,0.97650897,677.96,677.25,0.99438476]
[1752550205041,0.97650897,677.97,677.25,0.99438476]
[1752550205237,0.97571633,677.97,677.25,0.99368358]
[1752550205437,0.97571633,677.96,677.24,0.99368358]
[1752550205737,0.97571633,677.86,677.13,0.99368358]
[1752550205943,0.97571633,677.84,677.12,0.99368358]
[1752550206140,0.97571633,677.82,677.09,0.99368358]
[1752550206340,0.97571633,677.83,677.08,0.99368358]
[1752550206541,0.97571633,677.82,677.07,0.99368358]
[1752550206740,0.97571633,677.59,676.84,0.99368358]
[1752550206938,0.97571633,677.66,676.78,0.99368358]
[1752550207143,0.97571633,677.66,676.56,1.3258463]
[1752550207144,0.97571633,677.66,676.69,0.99368358]
[1752550207340,0.97571633,677.63,676.66,0.99368358]
[1752550207544,0.97571633,677.47,676.5,1.25058978]
[1752550207943,0.97571633,677.42,676.5,0.2569062]
[1752550208144,0.97571633,677.5,676.5,0.2569062]
[1752550208443,0.97571633,677.42,676.5,0.2569062]
[1752550208940,0.97571633,677.34,676.5,0.2569062]
[1752550209244,0.97571633,677.38,676.5,0.2569062]
[1752550209444,0.97571633,677.53,676.5,0.2569062]
[1752550209639,0.97571633,677.52,676.5,0.2569062]
[1752550209840,0.97571633,677.53,676.5,0.2569062]
[1752550210244,0.97571633,677.56,676.5,0.2569062]
[1752550211049,0.97571633,677.49,676.5,0.2569062]
[1752550211245,0.97571633,677.52,676.5,0.2569062]
[1752550211445,0.97571633,677.49,676.5,0.2569062]
[1752550212046,0.97571633,677.37,676.5,0.2569062]
[1752550212348,3.2550299,678.85,675.32,3.3146158]
[1752550212349,0.97571633,677.4,676.2,0.99368358]
[1752550212548,0.25702954,677.37,676.2,0.99368358]
[1752550212845,0.25702954,677.37,676.49,0.25702954]
[1752550213050,0.97571633,677.55,676.49,0.25702954]
[1752550213243,0.97571633,677.67,676.49,0.25702954]
[1752550213445,0.97571633,677.68,676.49,0.25702954]
[1752550214149,0.97571633,677.69,676.49,0.25702954]
[1752550214451,0.25696026,677.55,676.49,0.25702954]
[1752550217149,0.97571633,677.53,676.49,0.25702954]
[1752550217347,0.97571633,677.53,676.02,0.99368358]
[1752550217348,0.97571633,677.53,676.01,0.99368358]
[1752550217646,0.97571633,677.52,676.39,0.25705327]
[1752550218147,0.97571633,677.48,676.39,0.25705327]
[1752550218345,0.97571633,677.42,676.39,0.25705327]
[1752550218755,0.97571633,677.42,675.93,0.99368358]
[1752550218953,0.97571633,677.42,676.3,0.25708935]
[1752550219154,0.97571633,677.4,676.3,0.25708935]
[1752550219353,0.97571633,677.38,675.85,0.99368358]
[1752550219654,0.97571633,677.37,676.23,0.25710549]
[1752550219951,0.97571633,677.3,676.23,0.25710549]
[1752550220350,0.97571633,677.33,676.23,0.25710549]
[1752550220555,0.97571633,677.34,675.79,0.99368358]
[1752550220854,0.97571633,677.28,676.1,0.25714919]
[1752550221055,0.97571633,677.29,675.72,0.99368358]
[1752550221251,0.97571633,677.22,675.57,0.99368358]
[1752550221551,0.97571633,677.17,675.89,0.25720146]
[1752550222254,0.97571633,677.21,675.89,0.25720146]
[1752550222755,0.97571633,677.19,675.89,0.25720146]
[1752550223151,0.97571633,677.23,675.89,0.25720146]
[1752550223955,0.97571633,677.22,675.89,0.25720146]
[1752550224452,0.97571633,677.26,675.89,0.25720146]
[1752550224858,0.97571633,677.24,675.89,0.25720146]
[1752550225153,0.97571633,677.25,675.89,0.25720146]
[1752550225555,0.97571633,677.21,675.89,0.25720146]
[1752550225756,0.97571633,677.23,675.89,0.25720146]
[1752550225954,0.97571633,677.22,675.89,0.25720146]
[1752550226157,0.97571633,677.24,675.89,0.25720146]
[1752550226358,0.97571633,677.28,675.89,0.25720146]
[1752550226654,0.97571633,677.27,675.89,0.25720146]
[1752550226856,0.97571633,677.25,675.89,0.25720146]
[1752550227255,0.97571633,677.27,675.89,0.25720146]
[1752550227657,0.97571633,677.21,675.89,0.25720146]
[1752550227856,0.97571633,677.4,675.89,0.25720146]
[1752550228057,0.97571633,677.39,675.89,0.25720146]
[1752550228254,0.97571633,677.5,675.89,0.25720146]
[1752550228756,0.97571633,677.52,675.89,0.25720146]
[1752550229259,0.97571633,677.53,675.89,0.25720146]
[1752550229460,0.97571633,677.54,675.89,0.25720146]
[1752550229760,0.97571633,677.53,675.38,0.99368358]
[1752550229957,0.97571633,677.46,676.04,0.25713399]
[1752550230260,0.25713399,677.16,675.42,0.99368358]
[1752550230656,0.25713399,677.16,675.5,0.99368358]
[1752550230855,0.25713399,677.16,675.49,0.99368358]
[1752550231460,0.25713399,677.16,675.48,0.99368358]
[1752550231662,0.25713399,677.16,675.9,0.25712924]
[1752550232657,0.97571633,677.58,675.9,0.25712924]
[1752550232861,0.25711024,677.23,675.9,0.25712924]
[1752550233657,0.97571633,677.59,675.9,0.25712924]
[1752550233962,0.25707226,677.42,675.9,0.25712924]
[1752550252776,0.95294143,677.41,675.9,0.25712924]
[1752550253478,0.95294143,677.39,675.9,0.25712924]
[1752550254478,0.95294143,677.38,675.9,0.25712924]
[1752550255178,0.95294143,677.37,675.9,0.25712924]
[1752550255387,0.95294143,677.36,675.9,0.25712924]
[1752550256579,0.95294143,677.35,675.9,0.25712924]
[1752550256980,0.95294143,677.33,675.9,0.25712924]
[1752550257379,0.25707226,677.42,675.9,0.25712924]
[1752550257380,0.95294143,677.31,675.9,0.25712924]
[1752550258376,0.25707226,677.42,675.9,0.25712924]
[1752550258377,0.95294143,677.29,675.9,0.25712924]
[1752550258778,0.95294143,677.3,675.9,0.25712924]
[1752550259378,0.95294143,677.27,675.9,0.25712924]
[1752550260281,0.95294143,677.32,675.9,0.25712924]
[1752550260982,0.95294143,677.31,675.9,0.25712924]
[1752550261377,0.95294143,677.29,675.9,0.25712924]
[1752550261581,0.95294143,677.28,675.9,0.25712924]
[1752550262084,0.95294143,677.29,675.9,0.25712924]
[1752550262283,0.95294143,677.24,675.9,0.25712924]
[1752550262783,0.95294143,677.23,675.9,0.25712924]
[1752550263083,0.95294143,677.24,675.9,0.25712924]
[1752550263284,0.95294143,677.21,675.9,0.25712924]
[1752550264290,0.95294143,677.18,675.9,0.25712924]
[1752550264481,0.95294143,677.16,675.91,0.97316279]
[1752550264983,0.95294143,677.16,675.9,1.23029203]
[1752550265482,0.95294143,677.2,676.04,0.97316279]
[1752550266387,0.95294143,677.21,676.06,0.97316279]
[1752550267188,0.95294143,677.19,676.07,0.97316279]
[1752550267388,0.95294143,677.18,676.07,0.97316279]
[1752550267889,0.95294143,677.16,676.05,0.97316279]
[1752550268188,0.95294143,677.15,676.06,0.97316279]
[1752550269389,0.95294143,677.14,676.07,0.97316279]
[1752550269891,0.95294143,677.18,676.04,0.97316279]
[1752550270385,0.95294143,677.18,675.9,0.25712924]
[1752550270386,0.95294143,677.17,676.05,0.97316279]
[1752550271189,0.95294143,677.1,675.99,0.97316279]
[1752550272787,0.95294143,677.07,676.01,0.97316279]
[1752550273085,0.95294143,677.06,676.01,0.97316279]
[1752550273290,0.95294143,677.06,676.02,0.97316279]
[1752550273988,0.95294143,677.05,676.01,0.97316279]
[1752550274186,0.95294143,677.06,676.01,0.97316279]
[1752550274390,0.95294143,676.99,675.95,0.97316279]
[1752550274590,0.95294143,676.96,675.91,0.97316279]
[1752550274788,0.95294143,676.95,675.91,0.97316279]
[1752550275189,0.95294143,676.95,675.9,0.25712924]
[1752550275190,0.95294143,676.94,675.92,0.97316279]
[1752550277294,0.95294143,676.91,675.94,0.97316279]
[1752550277997,0.95294143,676.99,675.9,0.25712924]
[1752550278296,0.95294143,676.99,675.91,0.97316279]
[1752550278496,0.95294143,677.12,676.03,0.97316279]
[1752550279097,0.95294143,677.13,676.05,0.97316279]
[1752550279296,0.95294143,677.13,676.04,0.97316279]
[1752550279498,0.95294143,677.11,676.05,0.97316279]
[1752550279894,0.95294143,677.12,676.06,0.97316279]
[1752550280196,0.95294143,677.1,676.06,0.97316279]
[1752550280696,0.95294143,677.08,676.06,0.97316279]
[1752550280897,0.95294143,677.08,676.05,0.97316279]
[1752550281700,0.95294143,677.05,676.04,1.23027778]
[1752550282702,0.95294143,677.03,676.05,0.97316279]
[1752550283301,0.95294143,677.02,676.05,0.97316279]
[1752550283698,0.95294143,677.01,676.04,0.25711499]
[1752550284200,0.95294143,676.96,676.06,0.97316279]
[1752550284401,0.95294143,676.9,676.04,0.25711499]
[1752550284702,0.95294143,676.85,676.04,0.25711499]
[1752550284899,0.95294143,676.83,676.04,0.25711499]
[1752550285099,0.95294143,676.85,675.83,0.97316279]
[1752550285302,0.95294143,676.76,675.91,0.25722807]
[1752550285500,0.95294143,676.77,675.91,0.25722807]
[1752550286302,0.95294143,676.76,675.91,0.25722807]
[1752550286500,0.95294143,676.74,675.91,0.25722807]
[1752550286805,0.95294143,676.76,675.91,0.25722807]
[1752550288011,0.95294143,676.73,675.91,0.25722807]
[1752550288406,0.95294143,676.74,675.91,0.25722807]
[1752550289107,0.95294143,676.8,675.74,0.97316279]
[1752550289410,0.95294143,676.78,675.72,0.97316279]
[1752550289606,0.95294143,676.88,675.74,0.97316279]
[1752550289912,0.95294143,676.82,675.77,0.97316279]
[1752550290210,0.95294143,676.83,675.77,0.97316279]
[1752550290411,0.95294143,676.82,675.77,0.97316279]
[1752550290712,0.95294143,676.78,675.8,0.97316279]
[1752550291017,0.95294143,676.74,675.83,0.97316279]
[1752550291216,0.95294143,676.67,675.76,0.97316279]
[1752550291414,0.95294143,676.69,675.74,0.97316279]
[1752550291613,0.95294143,676.46,675.52,0.97316279]
[1752550291813,0.95294143,676.47,675.67,0.25728608]
[1752550292016,0.95294143,676.45,675.67,0.25728608]
[1752550292217,0.95294143,676.51,675.67,0.25728608]
[1752550292515,0.95294143,676.53,675.67,0.25728608]
[1752550293014,0.95294143,676.47,675.67,0.25728608]
[1752550293217,0.95294143,676.48,675.67,0.25728608]
[1752550293414,0.95294143,676.52,675.67,0.25728608]
[1752550294219,0.95294143,676.53,675.67,0.25728608]
[1752550294425,0.95294143,676.6,675.67,0.25728608]
[1752550295220,0.25728608,676.61,675.67,0.25728608]
[1752550298227,0.25728608,676.61,675.43,0.97316279]
[1752550298426,0.25728608,676.61,675.02,1.9887695]
[1752550298427,0.95294143,676.54,675.21,0.97316279]
[1752550298627,0.95294143,676.58,675.48,0.25735077]
[1752550298823,0.25728608,676.61,675.48,0.25735077]
[1752550302223,1.21022751,676.61,675.48,0.25735077]
[1752550302624,0.25728608,676.61,675.48,0.25735077]
[1752550302828,0.95294143,676.8,675.48,0.25735077]
[1752550303023,0.25729559,676.74,675.48,0.25735077]
[1752550303425,0.95294143,676.87,675.48,0.25735077]
[1752550303625,0.95294143,677.23,675.84,0.97316279]
[1752550303825,0.25719956,677.15,675.86,0.97316279]
[1752550304029,0.25719956,677.15,675.85,0.97316279]
[1752550304424,0.25719956,677.15,675.67,1.3258463]
[1752550304425,0.25719956,677.15,675.86,0.97316279]
[1752550304630,0.95294143,677.12,675.89,0.97316279]
[1752550304929,0.95294143,677.1,675.92,0.97316279]
[1752550305430,0.95294143,677.09,675.92,0.97316279]
[1752550305726,0.95294143,677.1,675.92,0.97316279]
[1752550306429,0.95294143,677.1,675.91,0.97316279]
[1752550306625,0.95294143,677.09,675.8,0.97316279]
[1752550308030,0.95294143,677.1,675.8,0.97316279]
[1752550308633,0.95294143,677.13,675.78,0.97316279]
[1752550308828,0.95294143,677.13,675.57,1.3258463]
[1752550308829,0.95294143,677.08,675.8,0.97316279]
[1752550309232,0.95294143,677.04,675.76,0.97316279]
[1752550309431,0.95294143,677.03,675.75,0.97316279]
[1752550309637,0.95294143,676.99,675.72,0.97316279]
[1752550309834,0.95294143,676.96,675.68,0.97316279]
[1752550310434,0.95294143,676.9,675.63,0.97316279]
[1752550310630,0.95294143,676.84,675.57,0.97316279]
[1752550310834,0.95294143,676.83,675.56,0.97316279]
[1752550311332,0.95294143,676.85,675.54,0.97316279]
[1752550311732,0.95294143,676.8,675.58,0.97316279]
[1752550312035,0.95294143,676.8,675.48,0.25735077]
[1752550312036,0.95294143,676.78,675.56,0.97316279]
[1752550312234,0.95294143,676.79,675.57,0.97316279]
[1752550312638,0.95294143,676.77,675.55,0.97316279]
[1752550313234,0.95294143,676.79,675.57,0.97316279]
[1752550313738,0.95294143,676.79,675.48,0.25735077]
[1752550313739,0.95294143,676.8,675.58,0.97316279]
[1752550314038,0.95294143,676.8,675.48,0.25735077]
[1752550314039,0.95294143,676.8,675.59,0.97316279]
[1752550314237,0.95294143,676.8,675.58,0.97316279]
[1752550315932,0.95294143,676.8,675.48,0.25735077]
[1752550315933,0.95294143,676.81,675.57,0.97316279]
[1752550316139,0.95294143,676.87,675.51,0.97316279]
[1752550316434,0.95294143,676.83,675.54,0.97316279]
[1752550316736,0.95294143,676.68,675.48,0.25735077]
[1752550316933,0.95294143,676.65,675.48,0.25735077]
[1752550317340,0.95294143,676.62,675.48,0.25735077]
[1752550318540,0.95294143,676.6,675.48,0.25735077]
[1752550318740,0.95294143,676.6,675.3,0.97316279]
[1752550319136,0.25734601,676.56,675.56,0.25734601]
[1752550320542,0.95294143,676.54,675.56,0.25734601]
[1752550320839,0.95294143,676.51,675.56,0.25734601]
[1752550321341,0.25734601,676.56,675.56,0.25734601]
[1752550321342,0.95294143,676.6,675.56,0.25734601]
[1752550321642,0.95294143,676.62,675.56,0.25734601]
[1752550322040,0.95294143,676.63,675.56,0.25734601]
[1752550322242,0.95294143,676.69,675.56,0.25734601]
[1752550322943,0.95294143,676.7,675.56,0.25734601]
[1752550323643,0.95294143,676.71,675.56,0.25734601]
[1752550323841,0.25732222,676.72,675.56,0.25734601]
[1752550324441,1.21026365,676.72,675.56,0.25734601]
[1752550324939,0.25732222,676.72,675.56,0.25734601]
[1752550325445,1.21026365,676.72,675.56,0.25734601]
[1752550325945,0.95294143,676.71,675.56,0.25734601]
[1752550326939,0.95294143,676.69,675.56,0.25734601]
[1752550327142,0.95294143,676.63,675.56,0.25734601]
[1752550327344,0.25732222,676.72,675.56,0.25734601]
[1752550327345,0.95294143,676.64,675.56,0.25734601]
[1752550327943,0.95294143,676.63,675.56,0.25734601]
[1752550328148,0.95294143,676.68,675.56,0.25734601]
[1752550328346,0.95294143,676.7,675.56,0.25734601]
[1752550328545,0.95294143,676.68,675.56,0.25734601]
[1752550328943,0.25732222,676.72,675.56,0.25734601]
[1752550329246,0.95294143,676.69,675.56,0.25734601]
[1752550329446,0.25732222,676.72,675.56,0.25734601]
[1752550330047,0.95294143,676.7,675.56,0.25734601]
[1752550330947,0.95294143,676.68,675.56,0.25734601]
[1752550331147,0.95294143,676.69,675.56,0.25734601]
[1752550331347,0.95294143,676.7,675.56,0.25734601]
[1752550331546,0.95294143,676.68,675.56,0.25734601]
[1752550332548,0.95294143,676.67,675.56,0.25734601]
[1752550332949,0.95294143,676.68,675.56,0.25734601]
[1752550333949,0.95294143,676.67,675.56,0.25734601]
[1752550334152,0.95294143,676.59,675.56,0.25734601]
[1752550334852,0.95294143,676.58,675.56,0.25734601]
[1752550335850,0.95294143,676.62,675.56,0.25734601]
[1752550336349,0.95294143,676.63,675.56,0.25734601]
[1752550337354,0.25732222,676.72,675.56,0.25734601]
[1752550338457,1.21026365,676.72,675.56,0.25734601]
[1752550339358,0.95294143,676.71,675.56,0.25734601]
[1752550340455,0.95294143,676.7,675.56,0.25734601]
[1752550341259,0.95294143,676.72,675.57,0.97316279]
[1752550341458,0.95294143,676.71,675.58,0.97316279]
[1752550341957,0.95294143,676.7,675.59,0.97316279]
[1752550342560,0.95294143,676.69,675.6,0.97316279]
[1752550342759,0.95294143,676.75,675.66,0.97316279]
[1752550342958,0.95294143,676.76,675.67,0.97316279]
[1752550343262,0.95294143,676.77,675.69,0.97316279]
[1752550343458,0.95294143,676.77,675.7,0.97316279]
[1752550343660,0.95294143,676.78,675.72,0.97316279]
[1752550344064,0.95294143,676.71,675.76,0.97316279]
[1752550344264,0.95294143,676.72,675.77,0.97316279]
[1752550344465,0.95294143,676.71,675.78,0.97316279]
[1752550345064,0.95294143,676.71,675.77,0.97316279]
[1752550345465,1.3020119,676.86,675.77,0.97316279]
[1752550345466,0.95294143,676.72,675.77,0.97316279]
[1752550346059,0.25722332,676.92,675.59,0.97316279]
[1752550346263,0.95294143,676.8,675.67,0.97316279]
[1752550346465,0.95294143,676.79,675.67,0.97316279]
[1752550346664,0.95294143,676.76,675.67,0.97316279]
[1752550346863,0.95294143,676.57,675.58,0.97316279]
[1752550347067,0.95294143,676.55,675.56,1.2305088]
[1752550347763,0.95294143,676.49,675.56,0.25734601]
[1752550349068,0.95294143,676.51,675.56,0.25734601]
[1752550350065,0.95294143,676.5,675.56,0.25734601]
[1752550350564,0.95294143,676.42,675.56,0.25734601]
[1752550350965,0.95294143,676.43,675.56,0.25734601]
[1752550351467,0.95294143,676.44,675.56,0.25734601]
[1752550351868,0.95294143,676.37,675.56,0.25734601]
[1752550352168,0.95294143,676.39,675.56,0.25734601]
[1752550352564,0.95294143,676.42,675.56,0.25734601]
[1752550353770,0.95294143,676.43,675.56,0.25734601]
[1752550354167,0.95294143,676.48,675.56,0.25734601]
[1752550354470,0.95294143,676.49,675.56,0.25734601]
[1752550358074,0.95294143,676.48,675.56,0.25734601]
[1752550358770,0.95294143,676.46,675.56,0.25734601]
[1752550359272,0.95294143,676.48,675.56,0.25734601]
[1752550359575,0.95294143,676.38,675.56,0.25734601]
[1752550360473,0.95294143,676.36,675.56,0.25734601]
[1752550360669,0.95294143,676.37,675.56,0.25734601]
[1752550361372,0.95294143,676.38,675.56,0.25734601]
[1752550361571,0.95294143,676.37,675.56,0.25734601]
[1752550361776,0.95294143,676.36,675.56,0.25734601]
[1752550361976,0.95294143,676.37,675.56,0.25734601]
[1752550362875,0.95294143,676.29,675.56,0.25734601]